fUST/lending_fUST_20251201
["ID","MTS","AMOUNT","RATE_DAILY","PERIOD"]
[395204748,1764543039032,-500.0,0.00013698,2]
[395204750,1764543039041,-500.0,0.00013698,2]
[395204752,1764543039051,-500.0,0.00013698,2]
[395204754,1764543039060,-500.0,0.00013698,2]
[395204757,1764543039070,-500.0,0.00013698,2]
[395204758,1764543039080,-500.0,0.00013698,2]
[395204760,1764543039090,-500.0,0.00013698,2]
[395204762,1764543039099,-500.0,0.00013698,2]
[395204764,1764543039109,-500.0,0.00013698,2]
[395204767,1764543039120,-500.0,0.00013698,2]
[395204769,1764543039129,-500.0,0.00013698,2]
[395204770,1764543039139,-500.0,0.00013698,2]
[395204772,1764543039149,-500.0,0.00013698,2]
[395204774,1764543039158,-151.0,0.00013698,2]
[395204776,1764543039168,-151.0,0.00013698,2]
[395204778,1764543039177,-151.0,0.00013698,2]
[395204780,1764543039187,-151.0,0.00013698,2]
[395204782,1764543039196,-151.0,0.00013698,2]
[395204784,1764543039206,-151.0,0.00013698,2]
[395204787,1764543039216,-151.0,0.00013698,2]
[395204788,1764543039226,-195.268374,0.00013698,2]
[395204790,1764543039235,-500.0,0.00013698,2]
[395204792,1764543039244,-500.0,0.00013698,2]
[395204794,1764543039254,-500.0,0.00013698,2]
[395204796,1764543039263,-500.0,0.00013698,2]
[395204798,1764543039272,-502.24966031,0.00013698,2]
[395204800,1764543039282,-500.0,0.00013698,2]
[395204802,1764543039291,-500.0,0.00013698,2]
[395204804,1764543039300,-500.0,0.00013698,2]
[395204806,1764543039309,-500.0,0.00013698,2]
[395204808,1764543039319,-500.0,0.00013698,2]
[395204810,1764543039329,-500.0,0.00013698,2]
[395204812,1764543039338,-500.0,0.00013698,2]
[395204814,1764543039347,-500.0,0.00013698,2]
[395204816,1764543039357,-1643.18,0.00013698,2]
[395204818,1764543039366,-500.0,0.00013698,2]
[395204820,1764543039375,-503.70469489,0.00013698,2]
[395204822,1764543039386,-500.0,0.00013698,2]
[395204824,1764543039398,-500.0,0.00013698,2]
[395204826,1764543039408,-534.69,0.00013698,2]
[395204828,1764543039418,-500.0,0.00013698,2]
[395204830,1764543039427,-500.0,0.00013698,2]
[395204833,1764543039437,-500.0,0.00013698,2]
[395204834,1764543039446,-500.0,0.00013698,2]
[395204836,1764543039456,-872.59,0.00013698,2]
[395204838,1764543039465,-500.0,0.00013698,2]
[395204840,1764543039474,-500.0,0.00013698,2]
[395204843,1764543039484,-500.0,0.00013698,2]
[395204844,1764543039493,-500.0,0.00013698,2]
[395204846,1764543039503,-500.0,0.00013698,2]
[395204848,1764543039513,-500.0,0.00013698,2]
[395204850,1764543039522,-526.92,0.00013698,2]
[395204867,1764543039675,-500.0,0.00013698,2]
[395204870,1764543039686,-500.0,0.00013698,2]
[395204872,1764543039696,-500.0,0.00013698,2]
[395204874,1764543039706,-500.0,0.00013698,2]
[395204876,1764543039715,-577.42,0.00013698,2]
[395204878,1764543039723,-500.0,0.00013698,2]
[395204880,1764543039732,-500.0,0.00013698,2]
[395204882,1764543039742,-500.0,0.00013698,2]
[395204883,1764543039751,-1725.99,0.00013698,2]
[395204885,1764543039765,-500.0,0.00013698,2]
[395204887,1764543039774,-500.0,0.00013698,2]
[395204889,1764543039783,-500.0,0.00013698,2]
[395204891,1764543039793,-500.0,0.00013698,2]
[395204894,1764543039802,-996.6,0.00013698,2]
[395204896,1764543039814,-151.0,0.00013698,2]
[395204897,1764543039823,-151.0,0.00013698,2]
[395204900,1764543039832,-500.0,0.00013698,2]
[395204902,1764543039843,-161.435812,0.00013698,2]
[395204904,1764543039852,-500.0,0.00013698,2]
[395204906,1764543039861,-151.0,0.00013698,2]
[395204907,1764543039870,-1000.0,0.00013698,2]
[395204910,1764543039880,-500.0,0.00013698,2]
[395204912,1764543039889,-500.0,0.00013698,2]
[395204913,1764543039898,-500.0,0.00013698,2]
[395204916,1764543039907,-676.71,0.00013698,2]
[395204917,1764543039917,-500.0,0.00013698,2]
[395204919,1764543039928,-826.98,0.00013698,2]
[395204921,1764543039937,-268.30237004,0.00013698,2]
[395204924,1764543039947,-500.0,0.00013698,2]
[395204926,1764543039956,-500.0,0.00013698,2]
[395204927,1764543039965,-500.0,0.00013698,2]
[395204929,1764543039974,-500.0,0.00013698,2]
[395204932,1764543039984,-500.0,0.00013698,2]
[395204933,1764543039993,-500.0,0.00013698,2]
[395204936,1764543040002,-500.0,0.00013698,2]
[395204937,1764543040012,-186.675,0.00013698,2]
[395204940,1764543040022,-500.0,0.00013698,2]
[395204941,1764543040032,-500.0,0.00013698,2]
[395204943,1764543040043,-500.0,0.00013698,2]
[395204946,1764543040052,-568.12,0.00013698,2]
[395204947,1764543040061,-500.0,0.00013698,2]
[395204949,1764543040071,-500.0,0.00013698,2]
[395204952,1764543040080,-500.0,0.00013698,2]
[395204953,1764543040089,-500.0,0.00013698,2]
[395204955,1764543040098,-500.0,0.00013698,2]
[395204957,1764543040107,-500.0,0.00013698,2]
[395204960,1764543040116,-500.0,0.00013698,2]
[395204961,1764543040125,-500.0,0.00013698,2]
[395204963,1764543040136,-500.0,0.00013698,2]
[395204965,1764543040145,-500.0,0.00013698,2]
[395204967,1764543040154,-500.0,0.00013698,2]
[395204969,1764543040164,-500.0,0.00013698,2]
[395204971,1764543040173,-500.0,0.00013698,2]
[395204973,1764543040182,-500.0,0.00013698,2]
[395204976,1764543040191,-500.0,0.00013698,2]
[395204978,1764543040201,-500.0,0.00013698,2]
[395204979,1764543040210,-500.0,0.00013698,2]
[395204981,1764543040219,-500.0,0.00013698,2]
[395204983,1764543040228,-500.0,0.00013698,2]
[395204985,1764543040238,-2161.28,0.00013698,2]
[395204987,1764543040247,-500.0,0.00013698,2]
[395204989,1764543040256,-500.0,0.00013698,2]
[395204991,1764543040265,-500.0,0.00013698,2]
[395204993,1764543040274,-500.0,0.00013698,2]
[395204995,1764543040282,-500.0,0.00013698,2]
[395204997,1764543040291,-715.91,0.00013698,2]
[395204999,1764543040301,-500.0,0.00013698,2]
[395205001,1764543040309,-500.0,0.00013698,2]
[395205003,1764543040318,-515.74,0.00013698,2]
[395205005,1764543040328,-500.0,0.00013698,2]
[395205007,1764543040337,-500.0,0.00013698,2]
[395205009,1764543040346,-500.0,0.00013698,2]
[395205011,1764543040355,-500.0,0.00013698,2]
[395205013,1764543040364,-500.0,0.00013698,2]
[395205015,1764543040373,-648.52,0.00013698,2]
[395205017,1764543040382,-500.0,0.00013698,2]
[395205019,1764543040391,-602.13,0.00013698,2]
[395205021,1764543040400,-1049.02,0.00013698,2]
[395205023,1764543040410,-500.37,0.00013698,2]
[395205025,1764543040419,-500.0,0.00013698,2]
[395205027,1764543040428,-500.0,0.00013698,2]
[395205029,1764543040438,-500.0,0.00013698,2]
[395205031,1764543040447,-500.0,0.00013698,2]
[395205033,1764543040456,-301.65729018,0.00013698,2]
[395205035,1764543040465,-1352.87,0.00013698,2]
[395205037,1764543040474,-502.6,0.00013698,2]
[395205039,1764543040483,-1593.74,0.00013698,2]
[395205041,1764543040492,-500.0,0.00013698,2]
[395205043,1764543040502,-500.0,0.00013698,2]
[395205045,1764543040511,-500.0,0.00013698,2]
[395205047,1764543040520,-500.0,0.00013698,2]
[395205049,1764543040531,-1338.48,0.00013698,2]
[395205051,1764543040540,-500.0,0.00013698,2]
[395205053,1764543040550,-500.0,0.00013698,2]
[395205055,1764543040559,-500.0,0.00013698,2]
[395205057,1764543040568,-1065.26,0.00013698,2]
[395205059,1764543040577,-500.0,0.00013698,2]
[395205061,1764543040587,-504.20751661,0.00013698,2]
[395205063,1764543040595,-500.0,0.00013698,2]
[395205065,1764543040604,-500.0,0.00013698,2]
[395205067,1764543040613,-810.21,0.00013698,2]
[395205069,1764543040623,-500.0,0.00013698,2]
[395205071,1764543040632,-500.0,0.00013698,2]
[395205073,1764543040641,-530.27,0.00013698,2]
[395205075,1764543040650,-500.0,0.00013698,2]
[395205077,1764543040659,-151.0,0.00013698,2]
[395205079,1764543040668,-151.0,0.00013698,2]
[395205081,1764543040677,-151.0,0.00013698,2]
[395205083,1764543040686,-756.54,0.00013698,2]
[395205085,1764543040695,-151.0,0.00013698,2]
[395205087,1764543040704,-500.0,0.00013698,2]
[395205089,1764543040714,-152.467748,0.00013698,2]
[395205091,1764543040723,-614.51,0.00013698,2]
[395205093,1764543040733,-151.0,0.00013698,2]
[395205095,1764543040742,-500.0,0.00013698,2]
[395205097,1764543040751,-155.467001,0.00013698,2]
[395205099,1764543040763,-500.0,0.00013698,2]
[395205101,1764543040772,-500.0,0.00013698,2]
[395205103,1764543040781,-500.0,0.00013698,2]
[395205105,1764543040791,-536.26440728,0.00013698,2]
[395205107,1764543040799,-500.0,0.00013698,2]
[395205109,1764543040813,-543.25,0.00013698,2]
[395205111,1764543040822,-500.0,0.00013698,2]
[395205113,1764543040831,-503.04,0.00013698,2]
[395205115,1764543040841,-500.0,0.00013698,2]
[395205117,1764543040851,-500.0,0.00013698,2]
[395205119,1764543040860,-1337.91,0.00013698,2]
[395205121,1764543040869,-453.01064057,0.00013698,2]
[395205123,1764543040878,-958.71,0.00013698,2]
[395205124,1764543040887,-500.0,0.00013698,2]
[395205125,1764543040896,-500.0,0.00013698,2]
[395205126,1764543040904,-500.0,0.00013698,2]
[395205127,1764543040914,-500.0,0.00013698,2]
[395205128,1764543040922,-638.54,0.00013698,2]
[395205129,1764543040931,-500.0,0.00013698,2]
[395205130,1764543040940,-609.0,0.00013698,2]
[395205131,1764543040949,-1066.89,0.00013698,2]
[395205132,1764543040957,-1759.68,0.00013698,2]
[395205133,1764543040966,-500.0,0.00013698,2]
[395205134,1764543040975,-1991.7753981,0.00013698,2]
[395205596,1764543045932,-500.0,0.00013561,2]
[395205670,1764544231978,-218.11974039,8.746e-05,2]
[395205672,1764544231988,-218.11974039,8.834e-05,2]
[395205674,1764544231997,-223.0,8.834e-05,2]
[395205676,1764544232006,-226.01504955,8.968e-05,2]
[395205678,1764544232016,-218.11974039,9.104e-05,2]
[395205681,1764544232025,-69.06929809,0.00010968,2]
[395205685,1764544232042,-197.62846038,0.00010968,2]
[395205687,1764544232051,-353.67603643,0.0001267,2]
[395205689,1764544232060,-307.38046739,0.00012968,2]
[395205691,1764544232070,-202.81037293,0.00013272,2]
[395205930,1764544240245,-86.4436301,0.00013272,2]
[395205931,1764544240258,-500.0,0.00013273,2]
[395205932,1764544240267,-500.0,0.00013273,2]
[395205933,1764544240277,-325.45637075,0.00013273,2]
[395206556,1764544246314,-174.54362925,0.00013273,2]
[395206557,1764544246324,-500.0,0.00013273,2]
[395206560,1764544246334,-500.0,0.00013273,2]
[395206561,1764544246344,-500.0,0.00013273,2]
[395206563,1764544246354,-500.0,0.00013273,2]
[395206565,1764544246363,-41.78884796,0.00013273,2]
[395207076,1764545432375,-505.46345719,8.07e-05,2]
[395207105,1764545438480,-155.76528857,8.07e-05,2]
[395207107,1764545438491,-443.22874576,8.152e-05,2]
[395207109,1764545438501,-218.0,8.152e-05,2]
[395207111,1764545438510,-177.07070984,8.234e-05,2]
[395207127,1764545438648,-266.15803592,8.234e-05,2]
[395207129,1764545438659,-227.78095231,8.359e-05,2]
[395207131,1764545438669,-218.22874576,9.104e-05,2]
[395207133,1764545438679,-268.78152373,0.00010359,2]
[395207135,1764545438688,-529.24422464,0.00012,2]
[395207137,1764545438700,-309.78209514,0.00012359,2]
[395207139,1764545438709,-353.67603643,0.00012375,2]
[395207141,1764545438719,-206.048837,0.00012393,2]
[395207143,1764545438728,-202.47780212,0.00012404,2]
[395207145,1764545438738,-43617.39827667,0.00012405,2]
[395207331,1764545440500,-498.04,0.00012405,2]
[395207333,1764545440512,-5884.56172333,0.00012405,2]
[395207335,1764545440521,-3661.45358681,0.00012909,2]
[395207337,1764545440530,-1499.3676863,0.00013023,2]
[395207339,1764545440539,-666.0,0.00013037,2]
[395207341,1764545440548,-13257.88144025,0.00013173,2]
[395207628,1764546125850,1000.0,0.0002,30]
[395207670,1764546632362,-353.67603643,0.00010028,2]
[395207672,1764546632371,-353.67603643,0.00010129,2]
[395207674,1764546632381,-233.0,0.00010129,2]
[395207676,1764546632391,-353.67603643,0.00010231,2]
[395207678,1764546632399,-353.67603643,0.00010611,2]
[395207680,1764546632408,-219.27406089,0.00010663,2]
[395207682,1764546632418,-244.22934156,0.00011648,2]
[395207684,1764546632434,-917.67398261,0.00012556,2]
[395207865,1764546638527,-219.27406089,9.978e-05,2]
[395207867,1764546638537,-219.27406089,0.00010078,2]
[395207869,1764546638547,-258.74339185,0.00012078,2]
[395207871,1764546638558,-1116.14346829,0.00012556,2]
[395207873,1764546638568,-1000.0,0.00012637,2]
[395207875,1764546638578,-330.0,0.00012637,2]
[395207877,1764546638588,-596.56286482,0.00012641,2]
[395207879,1764546638599,-171.61779798,0.00012641,2]
[395207881,1764546638609,-6820.51567402,0.00012642,2]
[395207884,1764546638622,-43179.48432598,0.00012642,2]
[395207886,1764546638634,-300.0,0.00012651,2]
[395207888,1764546638645,-300.0,0.00012651,2]
[395207889,1764546638654,-300.0,0.00012651,2]
[395207891,1764546638664,-300.0,0.00012651,2]
[395207894,1764546638674,-300.0,0.00012651,2]
[395207895,1764546638683,-300.0,0.00012651,2]
[395207897,1764546638693,-300.0,0.00012651,2]
[395207900,1764546638703,-300.0,0.00012651,2]
[395207901,1764546638713,-300.0,0.00012651,2]
[395207904,1764546638723,-300.0,0.00012651,2]
[395207906,1764546638733,-300.0,0.00012651,2]
[395207907,1764546638743,-300.0,0.00012651,2]
[395207909,1764546638752,-300.0,0.00012651,2]
[395207912,1764546638761,-300.0,0.00012651,2]
[395207913,1764546638771,-300.0,0.00012651,2]
[395207916,1764546638780,-600.0,0.00012651,2]
[395207917,1764546638790,-351.33335671,0.000129,2]
[395207919,1764546638799,-151.0,0.00012985,2]
[395207922,1764546638809,-151.0,0.00012985,2]
[395207924,1764546638820,-500.0,0.00012985,2]
[395207944,1764546639004,-205.36618195,0.00012985,2]
[395207946,1764546639014,-151.0,0.00013012,2]
[395207948,1764546639024,-151.0,0.00013012,2]
[395207950,1764546639034,-268.84225,0.00013012,2]
[395207952,1764546639043,-195.27686796,0.00013012,2]
[395207954,1764546639053,-501.13199368,0.00013012,2]
[395207956,1764546639062,-251.58953217,0.00013012,2]
[395207957,1764546639072,-571.55606638,0.00013012,2]
[395207959,1764546639081,-242.2596715,0.00013012,2]
[395207961,1764546639092,-172.79557227,0.00013012,2]
[395207963,1764546639101,-500.0,0.00013012,2]
[395207965,1764546639110,-231.28369723,0.00013012,2]
[395207967,1764546639120,-500.0,0.00013012,2]
[395207969,1764546639130,-500.0,0.00013012,2]
[395207971,1764546639139,-500.0,0.00013012,2]
[395207973,1764546639149,-516.72522981,0.00013012,2]
[395207975,1764546639158,-504.00305312,0.00013012,2]
[395207977,1764546639167,-164.31862293,0.00013073,2]
[395207979,1764546639176,-1499.3676864,0.00013121,2]
[395207981,1764546639186,-151.0,0.00013122,2]
[395207983,1764546639195,-151.0,0.00013122,2]
[395207985,1764546639204,-628.96648896,0.00013122,2]
[395207987,1764546639215,-200.10393962,0.00013149,2]
[395207989,1764546639224,-151.0,0.00013149,2]
[395207991,1764546639233,-151.0,0.00013173,2]
[395207993,1764546639242,-151.0,0.00013173,2]
[395207995,1764546639251,-151.0,0.00013173,2]
[395207997,1764546639260,-151.0,0.00013173,2]
[395207999,1764546639270,-151.0,0.00013173,2]
[395208000,1764546639279,-151.0,0.00013173,2]
[395208002,1764546639289,-151.0,0.00013173,2]
[395208004,1764546639299,-151.0,0.00013173,2]
[395208006,1764546639309,-151.0,0.00013173,2]
[395208008,1764546639318,-151.0,0.00013173,2]
[395208010,1764546639327,-151.0,0.00013173,2]
[395208012,1764546639336,-151.0,0.00013173,2]
[395208014,1764546639346,-151.0,0.00013173,2]
[395208016,1764546639355,-151.0,0.00013173,2]
[395208018,1764546639364,-151.0,0.00013173,2]
[395208021,1764546639377,-230.573723,0.00013173,2]
[395208023,1764546639387,-230.573723,0.00013173,2]
[395208025,1764546639396,-230.573723,0.00013173,2]
[395208027,1764546639406,-230.573723,0.00013173,2]
[395208029,1764546639415,-151.0,0.00013173,2]
[395208031,1764546639426,-151.402774,0.00013173,2]
[395208032,1764546639437,-151.0,0.00013173,2]
[395208034,1764546639446,-1000.0,0.00013185,2]
[395208036,1764546639456,-164.31862291,0.0001324,2]
[395208038,1764546639467,-198.0,0.00013259,2]
[395208040,1764546639476,-500.2392283,0.00013273,2]
[395208042,1764546639486,-500.0,0.00013273,2]
[395208044,1764546639495,-500.3601762,0.00013273,2]
[395208047,1764546639506,-500.0,0.00013273,2]
[395208048,1764546639516,-500.0,0.00013273,2]
[395208050,1764546639526,-500.0,0.00013273,2]
[395208053,1764546639535,-500.0,0.00013273,2]
[395208055,1764546639547,-500.0,0.00013273,2]
[395208056,1764546639556,-500.0,0.00013273,2]
[395208058,1764546639566,-500.0,0.00013273,2]
[395208061,1764546639575,-500.0,0.00013273,2]
[395208062,1764546639585,-500.0,0.00013273,2]
[395208064,1764546639596,-500.0,0.00013273,2]
[395208066,1764546639605,-500.0,0.00013273,2]
[395208068,1764546639614,-494.74506256,0.00013273,2]
[395208070,1764546639631,-500.0,0.00013273,2]
[395208072,1764546639640,-500.0,0.00013273,2]
[395208074,1764546639650,-151.0,0.00013273,2]
[395208076,1764546639660,-151.0,0.00013273,2]
[395208078,1764546639670,-151.0,0.00013273,2]
[395208080,1764546639679,-151.0,0.00013273,2]
[395208082,1764546639689,-500.0,0.00013273,2]
[395208084,1764546639698,-151.0,0.00013273,2]
[395208086,1764546639709,-152.460499,0.00013273,2]
[395208088,1764546639719,-151.0,0.00013273,2]
[395208090,1764546639728,-151.0,0.00013273,2]
[395208092,1764546639738,-151.0,0.00013273,2]
[395208094,1764546639748,-151.0,0.00013273,2]
[395208096,1764546639757,-151.0,0.00013273,2]
[395208098,1764546639767,-151.0,0.00013273,2]
[395208101,1764546639776,-151.0,0.00013273,2]
[395208103,1764546639786,-151.0,0.00013273,2]
[395208104,1764546639795,-151.0,0.00013273,2]
[395208107,1764546639804,-151.0,0.00013273,2]
[395208109,1764546639814,-151.0,0.00013273,2]
[395208111,1764546639823,-151.0,0.00013273,2]
[395208113,1764546639833,-151.0,0.00013273,2]
[395208115,1764546639844,-151.0,0.00013273,2]
[395208117,1764546639854,-222.905724,0.00013273,2]
[395208119,1764546639864,-204.26607949,0.00013286,2]
[395208121,1764546639873,-351.33335667,0.00013398,2]
[395208123,1764546639883,-244.22934156,0.00013406,2]
[395208125,1764546639893,-164.31862291,0.00013406,2]
[395208127,1764546639902,-151.0,0.0001341,2]
[395208129,1764546639912,-500.0,0.0001341,2]
[395208131,1764546639921,-776.846705,0.0001341,2]
[395208133,1764546639931,-776.846705,0.0001341,2]
[395208135,1764546639941,-776.846705,0.0001341,2]
[395208137,1764546639952,-776.846705,0.0001341,2]
[395208139,1764546639961,-24010.0,0.000135,2]
[395208141,1764546639972,-230.573723,0.000135,2]
[395208143,1764546639981,-151.0,0.000135,2]
[395208145,1764546639991,-230.573723,0.000135,2]
[395208147,1764546640000,-230.573723,0.000135,2]
[395208149,1764546640009,-230.573723,0.000135,2]
[395208150,1764546640018,-151.0,0.000135,2]
[395208152,1764546640028,-292.69104,0.000135,2]
[395208154,1764546640037,-151.0,0.000135,2]
[395208156,1764546640047,-151.844056,0.000135,2]
[395208158,1764546640056,-151.0,0.000135,2]
[395208160,1764546640065,-151.0,0.000135,2]
[395208162,1764546640075,-151.0,0.000135,2]
[395208164,1764546640084,-151.0,0.000135,2]
[395208167,1764546640095,-151.0,0.000135,2]
[395208169,1764546640104,-776.846705,0.000135,2]
[395208171,1764546640114,-776.846705,0.000135,2]
[395208173,1764546640123,-776.846705,0.000135,2]
[395208174,1764546640132,-988.0,0.00013534,2]
[395208177,1764546640141,-2117.622,0.00013534,2]
[395208179,1764546640151,-414.0,0.00013534,2]
[395208181,1764546640160,-50000.0,0.00013534,2]
[395208183,1764546640170,-151.0,0.00013534,2]
[395208185,1764546640179,-151.0,0.00013534,2]
[395208187,1764546640189,-151.0,0.00013534,2]
[395208189,1764546640198,-151.0,0.00013534,2]
[395208191,1764546640207,-211.667936,0.00013534,2]
[395208192,1764546640217,-230.573723,0.00013534,2]
[395208195,1764546640226,-151.0,0.00013534,2]
[395208197,1764546640235,-230.573723,0.00013534,2]
[395208198,1764546640245,-230.573723,0.00013534,2]
[395208201,1764546640257,-230.573723,0.00013534,2]
[395208202,1764546640267,-151.0,0.00013534,2]
[395208204,1764546640277,-151.0,0.00013534,2]
[395208205,1764546640287,-151.0,0.00013534,2]
[395208206,1764546640296,-151.0,0.00013534,2]
[395208207,1764546640306,-151.0,0.00013534,2]
[395208208,1764546640316,-151.0,0.00013534,2]
[395208209,1764546640326,-151.0,0.00013534,2]
[395208210,1764546640335,-776.846705,0.00013534,2]
[395208211,1764546640345,-776.846705,0.00013534,2]
[395208212,1764546640354,-776.846705,0.00013534,2]
[395208213,1764546640364,-283.99019839,0.00013547,2]
[395208214,1764546640373,-351.34211215,0.00013547,2]
[395208215,1764546640383,-151.0,0.00013547,2]
[395208216,1764546640392,-263.571072,0.00013547,2]
[395208217,1764546640402,-151.0,0.00013547,2]
[395208218,1764546640411,-151.0,0.00013547,2]
[395208219,1764546640421,-270.311458,0.00013547,2]
[395208220,1764546640434,-151.0,0.00013547,2]
[395208221,1764546640443,-151.0,0.00013547,2]
[395208222,1764546640452,-151.0,0.00013547,2]
[395208223,1764546640463,-151.0,0.00013547,2]
[395208224,1764546640472,-151.0,0.00013547,2]
[395208225,1764546640481,-151.0,0.00013547,2]
[395208226,1764546640491,-151.0,0.00013547,2]
[395208227,1764546640500,-239.84119403,0.0001356,2]
[395208228,1764546640510,-164.31862291,0.00013573,2]
[395208229,1764546640519,-151.0,0.00013598,2]
[395208230,1764546640528,-151.0,0.00013598,2]
[395208231,1764546640537,-151.0,0.00013598,2]
[395208232,1764546640546,-151.0,0.00013598,2]
[395208233,1764546640556,-151.0,0.00013598,2]
[395208234,1764546640566,-151.0,0.00013598,2]
[395208235,1764546640575,-269.478417,0.00013598,2]
[395208236,1764546640584,-151.0,0.00013598,2]
[395208237,1764546640594,-151.0,0.00013598,2]
[395208238,1764546640603,-230.573723,0.00013598,2]
[395208239,1764546640612,-230.573723,0.00013598,2]
[395208240,1764546640621,-151.0,0.00013598,2]
[395208241,1764546640631,-230.573723,0.00013598,2]
[395208242,1764546640640,-230.573723,0.00013598,2]
[395208243,1764546640659,-230.573723,0.00013598,2]
[395208244,1764546640669,-230.573723,0.00013598,2]
[395208245,1764546640679,-230.573723,0.00013598,2]
[395208247,1764546640690,-230.573728,0.00013598,2]
[395208248,1764546640700,-151.0,0.00013598,2]
[395208250,1764546640710,-151.0,0.00013598,2]
[395208252,1764546640720,-151.0,0.00013598,2]
[395208254,1764546640729,-151.0,0.00013598,2]
[395208256,1764546640739,-151.0,0.00013598,2]
[395208258,1764546640748,-151.0,0.00013598,2]
[395208260,1764546640758,-151.0,0.00013598,2]
[395208262,1764546640767,-152.81286195,0.00013598,2]
[395208265,1764546640777,-151.0,0.00013598,2]
[395208267,1764546640786,-151.0,0.00013598,2]
[395208270,1764546640796,-12556.48859493,0.00013598,2]
[395208271,1764546640805,-776.846705,0.00013598,2]
[395208290,1764546640970,-776.846705,0.00013598,2]
[395208293,1764546640981,-776.846705,0.00013598,2]
[395208295,1764546640990,-776.846705,0.00013598,2]
[395208297,1764546640999,-776.846705,0.00013598,2]
[395208299,1764546641009,-776.846705,0.00013598,2]
[395208301,1764546641018,-7447.72236075,0.00013598,2]
[395208303,1764546641028,-890000.0,0.00013598,2]
[395208305,1764546641036,-300.0,0.00013673,2]
[395208307,1764546641046,-151.0,0.0001369,2]
[395208309,1764546641055,-223.454628,0.0001369,2]
[395208311,1764546641064,-1428.12637843,0.00013693,2]
[395208313,1764546641073,-151.0,0.00013693,2]
[395208315,1764546641082,-151.0,0.00013693,2]
[395208317,1764546641091,-151.0,0.00013693,2]
[395208319,1764546641100,-151.0,0.00013693,2]
[395208321,1764546641109,-151.0,0.00013693,2]
[395208323,1764546641118,-151.0,0.00013693,2]
[395208325,1764546641127,-151.0,0.00013693,2]
[395208327,1764546641136,-151.0,0.00013693,2]
[395208329,1764546641145,-269.0704,0.00013693,2]
[395208331,1764546641154,-999.2062,0.00013697,2]
[395208333,1764546641163,-151.0,0.00013697,2]
[395208334,1764546641173,-500.0,0.00013697,2]
[395208337,1764546641182,-500.0,0.00013698,2]
[395208339,1764546641192,-598.08128464,0.00013698,2]
[395208341,1764546641201,-500.0,0.00013698,2]
[395208342,1764546641211,-500.0,0.00013698,2]
[395208345,1764546641220,-500.0,0.00013698,2]
[395208347,1764546641230,-500.0,0.00013698,2]
[395208348,1764546641239,-500.0,0.00013698,2]
[395208350,1764546641249,-500.0,0.00013698,2]
[395208353,1764546641259,-500.0,0.00013698,2]
[395208354,1764546641267,-500.0,0.00013698,2]
[395208356,1764546641277,-500.0,0.00013698,2]
[395208359,1764546641287,-500.0,0.00013698,2]
[395208360,1764546641296,-500.0,0.00013698,2]
[395208363,1764546641305,-749.67,0.00013698,2]
[395208365,1764546641315,-500.0,0.00013698,2]
[395208367,1764546641324,-500.0,0.00013698,2]
[395208368,1764546641333,-500.0,0.00013698,2]
[395208371,1764546641343,-500.0,0.00013698,2]